bitfinex-derivatives/quotes_SOLF0:USTF0_20260304
["timestamp","ask_amount","ask_price","bid_price","bid_amount"]
[1772644320808,6.70711093,91.958,91.905,16.27031254]
[1772644321003,6.70711093,91.958,91.905,9.79]
[1772644321204,6.70711093,91.956,91.905,9.79]
[1772644321602,6.70711093,91.956,91.911,9.789]
[1772644322000,6.70711093,91.956,91.888,6.48031254]
[1772644322205,6.70711093,91.947,91.888,6.48031254]
[1772644322905,6.70711093,91.947,91.843,19.88822271]
[1772644322906,6.70711093,91.929,91.855,6.48031254]
[1772644323105,6.70711093,91.927,91.855,6.48031254]
[1772644323305,6.70711093,91.926,91.855,6.48031254]
[1772644323510,6.70711093,91.916,91.855,6.48031254]
[1772644323706,7.30204117,91.91,91.855,6.48031254]
[1772644324102,8.12775729,91.915,91.865,9.794]
[1772644324302,6.70711093,91.916,91.865,9.794]
[1772644324503,7.30204117,91.91,91.855,6.48031254]
[1772644324704,7.30204117,91.91,91.856,16.27531254]
[1772644325011,6.70711093,91.908,91.839,6.48031254]
[1772644325312,6.70711093,91.906,91.839,6.48031254]
[1772644326404,9.79,91.903,91.854,9.795]
[1772644326604,3.41076551,91.89,91.854,9.795]
[1772644327004,8.12775729,91.905,91.841,6.48031254]
[1772644327205,3.41076551,91.9,91.841,6.48031254]
[1772644327707,3.41076551,91.9,91.851,6.48031254]
[1772644328511,9.789,91.913,91.868,9.794]
[1772644329708,17.91675729,91.913,91.868,9.794]
[1772644329907,8.12775729,91.912,91.868,9.794]
[1772644330108,9.789,91.913,91.868,9.794]
[1772644331916,14.01446337,91.92,91.875,9.793]
[1772644332215,14.01446337,91.92,91.851,6.48031254]
[1772644332216,6.70711093,91.919,91.851,6.48031254]
[1772644332614,6.70711093,91.91,91.851,6.48031254]
[1772644333416,9.79,91.906,91.858,9.795]
[1772644333613,6.70711093,91.905,91.858,9.795]
[1772644333914,6.70711093,91.899,91.851,6.48031254]
[1772644334316,9.791,91.895,91.851,6.48031254]
[1772644334916,6.70711093,91.894,91.824,6.48031254]
[1772644335117,6.70711093,91.888,91.842,9.796]
[1772644335717,9.792,91.884,91.842,9.796]
[1772644336114,6.70711093,91.888,91.825,6.48031254]
[1772644336313,6.70711093,91.87,91.804,6.48031254]
[1772644336919,6.70711093,91.87,91.819,6.48031254]
[1772644337821,16.49911093,91.885,91.834,6.48031254]
[1772644338022,6.70711093,91.885,91.834,6.48031254]
[1772644338425,6.70711093,91.885,91.835,9.797]
[1772644338826,6.70711093,91.885,91.835,16.80769858]
[1772644339028,6.85568076,91.878,91.828,7.01069858]
[1772644340430,9.793,91.874,91.831,9.798]
[1772644341424,6.85568076,91.878,91.831,16.80869858]
[1772644341632,6.85568076,91.898,91.835,7.01069858]
[1772644343430,9.792,91.886,91.842,9.796]
[1772644343633,6.85568076,91.898,91.804,7.01069858]
[1772644343933,6.85568076,91.884,91.821,7.01069858]
[1772644344534,9.793,91.879,91.84,9.797]
[1772644345035,6.85568076,91.884,91.84,9.797]
[1772644346124,6.85568076,91.884,91.847,9.796]
[1772644348031,6.85568076,91.884,91.84,6.65177823]
[1772644348232,9.792,91.883,91.84,6.65177823]
[1772644348434,3.41188066,91.88,91.844,9.796]
[1772644348731,3.41188066,91.91,91.851,6.65177823]
[1772644349535,3.41188066,91.89,91.837,6.65177823]
[1772644349933,16.44244175,91.879,91.838,9.797]
[1772644350131,3.41188066,91.87,91.821,6.65177823]
[1772644350435,3.41188066,91.87,91.828,9.798]
[1772644350735,6.64944175,91.878,91.831,6.65177823]
[1772644351137,6.64944175,91.878,91.836,9.797]
[1772644351337,3.41188066,91.87,91.831,6.65177823]
[1772644351731,3.41188066,91.86,91.819,9.799]
[1772644352238,6.64944175,91.868,91.82,6.65177823]
[1772644353641,6.64944175,91.868,91.821,9.799]
[1772644354040,6.64944175,91.868,91.821,16.45077823]
[1772644355341,6.64944175,91.868,91.822,6.65177823]
[1772644356241,6.64944175,91.868,91.823,9.798]
[1772644356436,3.41188066,91.87,91.824,6.65177823]
[1772644356842,3.41188066,91.87,91.833,9.797]
[1772644357244,3.41188066,91.87,91.824,6.65177823]
[1772644357644,3.41188066,91.87,91.832,9.797]
[1772644357838,3.41188066,91.88,91.833,6.65177823]
[1772644358042,6.64944175,91.884,91.84,3.41188066]
[1772644358239,3.41188066,91.89,91.849,9.796]
[1772644359036,9.792,91.888,91.849,9.796]
[1772644359545,3.41188066,91.88,91.84,9.797]
[1772644359843,3.41188066,91.87,91.822,6.65177823]
[1772644360043,3.41188066,91.87,91.829,9.798]
[1772644360239,3.41188066,91.87,91.822,6.65177823]
[1772644361345,3.41188066,91.87,91.829,9.798]
[1772644362238,13.20588066,91.87,91.822,6.65177823]
[1772644362543,3.41188066,91.87,91.822,6.65177823]
[1772644362945,6.64944175,91.874,91.822,6.65177823]
[1772644363142,10.13318771,91.908,91.76,152.533]
[1772644363143,3.41188066,91.89,91.838,6.65177823]
[1772644363343,6.64944175,91.898,91.85,3.41188066]
[1772644363545,6.64944175,91.898,91.851,6.65177823]
[1772644363742,3.41188066,91.91,91.851,6.65177823]
[1772644363942,9.79,91.906,91.856,6.65177823]
[1772644364142,9.79,91.906,91.86,3.41188066]
[1772644364342,6.64944175,91.909,91.856,6.65177823]
[1772644364643,6.64944175,91.909,91.86,3.41188066]
[1772644364848,6.64944175,91.899,91.85,6.65177823]
[1772644365240,6.64944175,91.899,91.85,10.06365889]
[1772644365447,6.64944175,91.899,91.851,6.65177823]
[1772644366049,6.64944175,91.919,91.864,6.65177823]
[1772644366244,8.14527227,91.918,91.87,3.41188066]
[1772644366444,8.14527227,91.917,91.871,6.65177823]
[1772644366646,8.14527227,91.916,91.871,6.65177823]
[1772644366940,8.14527227,91.929,91.871,6.65177823]
[1772644367141,8.14527227,91.928,91.871,6.65177823]
[1772644367340,8.14527227,91.927,91.871,6.65177823]
[1772644367647,8.14527227,91.927,91.841,19.594]
[1772644367648,8.14527227,91.936,91.881,6.65177823]
[1772644367848,8.14527227,91.935,91.89,3.41188066]
[1772644368048,8.14527227,91.934,91.892,9.791]
[1772644368246,8.14527227,91.936,91.892,9.791]
[1772644368640,6.64944175,91.937,91.892,9.791]
[1772644369444,3.41188066,91.92,91.871,6.79613673]
[1772644369645,7.4141589,91.919,91.871,6.79613673]
[1772644370346,8.14527227,91.925,91.875,6.79613673]
[1772644370550,7.4141589,91.919,91.861,6.79613673]
[1772644371347,3.41188066,91.93,91.88,3.41188066]
[1772644371547,7.4141589,91.929,91.88,3.41188066]
[1772644371854,7.4141589,91.929,91.876,6.79613673]
[1772644372154,3.41188066,91.92,91.876,6.79613673]
[1772644372354,3.41188066,91.92,91.861,6.79613673]
[1772644372355,10.82603956,91.92,91.861,6.79613673]
[1772644373343,9.789,91.916,91.87,3.41188066]
[1772644373654,7.4141589,91.938,91.89,3.41188066]
[1772644373854,7.4141589,91.938,91.885,6.79613673]
[1772644374054,3.41188066,91.94,91.885,6.79613673]
[1772644374055,20.61303956,91.93,91.885,6.79613673]
[1772644374256,7.4141589,91.928,91.88,3.41188066]
[1772644374845,9.788,91.924,91.88,3.41188066]
[1772644375353,7.4141589,91.928,91.88,3.41188066]
[1772644375554,9.787,91.934,91.881,6.79613673]
[1772644376355,9.787,91.934,91.885,9.792]
[1772644376554,9.787,91.934,91.885,16.58813673]
[1772644376753,9.787,91.934,91.886,6.79613673]
[1772644377149,9.787,91.934,91.887,9.792]
[1772644377448,7.4141589,91.944,91.891,6.79613673]
[1772644377654,7.4141589,91.944,91.903,9.79]
[1772644378554,7.4141589,91.944,91.842,55.0]
[1772644378555,8.12378469,91.956,91.921,6.79613673]
[1772644378857,8.12378469,91.956,91.845,152.391]
[1772644378858,7.4141589,92.017,91.951,6.79613673]
[1772644379249,7.4141589,92.0,91.951,6.79613673]
[1772644379450,3.41188066,91.99,91.935,6.79613673]
[1772644379659,7.4141589,91.989,91.935,6.79613673]
[1772644379855,7.4141589,91.989,91.94,3.41188066]
[1772644380048,7.4141589,91.989,91.935,6.79613673]
[1772644380249,3.41188066,91.97,91.918,6.79613673]
[1772644380458,7.4141589,91.979,91.921,6.79613673]
[1772644380656,7.4141589,92.014,91.922,6.79613673]
[1772644380856,7.4141589,92.014,91.941,6.79613673]
[1772644381551,7.4141589,92.014,91.955,6.79613673]
[1772644382259,7.4141589,92.014,91.938,6.79613673]
[1772644382454,7.4141589,92.014,91.862,20.06596238]
[1772644382455,7.4141589,91.999,91.911,6.79613673]
[1772644382659,7.4141589,91.977,91.914,9.789]
[1772644382862,7.4141589,91.977,91.915,6.79613673]
[1772644383258,7.4141589,91.977,91.918,6.79613673]
[1772644383859,7.4141589,91.999,91.923,6.79613673]
[1772644384155,7.4141589,91.999,91.865,19.588]
[1772644384156,7.4141589,92.046,91.951,6.79613673]
[1772644384360,7.4141589,92.046,91.975,6.79613673]
[1772644385056,7.4141589,92.046,91.981,6.79613673]
[1772644385662,7.4141589,92.046,91.983,6.79613673]
[1772644385862,10.41340826,92.056,91.983,6.79613673]
[1772644386758,10.41340826,92.056,91.997,6.79613673]
[1772644387963,184.79879759,92.09,91.98,7.29543824]
[1772644387964,7.4141589,92.129,92.026,3.62181862]
[1772644388159,7.29543824,92.11,92.026,3.62181862]
[1772644388359,7.4141589,92.099,92.001,3.62181862]
[1772644388662,7.4141589,92.099,92.029,3.63525276]
[1772644389263,7.4141589,92.099,92.043,3.7957504]
[1772644389665,7.4141589,92.119,92.043,3.7957504]
[1772644389860,7.4141589,92.169,92.025,3.80871634]
[1772644390054,0.00042078,92.127,92.081,3.80871634]
[1772644390255,7.4141589,92.159,92.103,9.769]
[1772644390454,7.29543824,92.22,92.091,3.80871634]
[1772644390455,7.29543824,92.18,92.091,3.80871634]
[1772644390663,7.29543824,92.22,92.131,6.79613673]
[1772644390861,7.29543824,92.2,92.109,6.79613673]
[1772644391160,7.29543824,92.18,92.089,6.79613673]
[1772644391361,7.29543824,92.18,92.107,9.768]
[1772644391558,7.29543824,92.22,92.121,6.79613673]
[1772644391958,7.29543824,92.21,92.121,6.79613673]
[1772644392158,124.0,92.27,92.121,6.79613673]
[1772644392361,7.4141589,92.229,92.141,6.79613673]
[1772644392960,7.4141589,92.209,92.12,6.79613673]
[1772644393159,7.4141589,92.209,92.12,14.09157497]
[1772644393363,7.29543824,92.22,92.124,6.79613673]
[1772644393565,7.4141589,92.232,92.172,9.761]
[1772644393861,7.4141589,92.232,92.141,6.79613673]
[1772644394365,7.4141589,92.219,92.141,6.79613673]
[1772644394563,7.4141589,92.255,92.18,9.761]
[1772644394764,7.4141589,92.249,92.114,6.79613673]
[1772644394961,7.4141589,92.249,92.151,6.79613673]
[1772644395356,7.4141589,92.247,92.151,6.79613673]
[1772644395862,7.4141589,92.247,92.182,6.79613673]
[1772644396069,7.4141589,92.239,92.161,6.79613673]
[1772644396263,7.4141589,92.237,92.161,16.55913673]
[1772644396465,7.4141589,92.237,92.161,6.79613673]
[1772644396857,7.29543824,92.25,92.161,6.79613673]
[1772644397167,7.4141589,92.257,92.161,6.79613673]
[1772644397767,7.4141589,92.257,92.18,6.79613673]
[1772644398168,7.4141589,92.254,92.18,6.79613673]
[1772644398566,7.51790631,92.239,92.16,7.46972066]
[1772644398867,7.29543824,92.28,92.086,151.992]
[1772644398868,7.51790631,92.224,92.143,7.46972066]
[1772644399367,7.29543824,92.23,92.161,7.46972066]
[1772644399565,7.51790631,92.245,92.161,7.46972066]
[1772644399768,7.51790631,92.239,92.161,7.46972066]
[1772644400069,7.51790631,92.239,92.167,7.46972066]
[1772644400469,7.51790631,92.226,92.144,7.46972066]
[1772644400667,7.51790631,92.229,92.144,7.46972066]
[1772644401270,7.51790631,92.213,92.144,7.46972066]
[1772644402063,7.51790631,92.239,92.146,7.46972066]
[1772644402259,7.51790631,92.239,92.093,151.981]
[1772644402260,7.51790631,92.219,92.126,7.46972066]
[1772644402462,7.51790631,92.199,92.126,7.46972066]
[1772644402660,7.51790631,92.197,92.126,7.46972066]
[1772644403064,9.759,92.196,92.126,7.46972066]
[1772644403265,7.51790631,92.197,92.1,7.29543824]
[1772644403266,7.51790631,92.195,92.127,7.46972066]
[1772644404371,7.29543824,92.21,92.078,55.0]
[1772644404372,7.51790631,92.189,92.101,7.46972066]
[1772644404966,7.51790631,92.189,92.117,7.46972066]
[1772644405470,6.71078422,92.189,92.117,7.46972066]
[1772644405870,9.76,92.188,92.118,9.767]
[1772644406175,6.71078422,92.189,92.118,9.767]
[1772644406369,6.71078422,92.189,92.119,7.15736701]
[1772644406669,9.761,92.179,92.119,7.15736701]
[1772644407063,7.26397127,92.18,92.107,9.768]
[1772644407268,7.26397127,92.18,92.041,19.551]
[1772644407269,7.26397127,92.16,92.041,19.551]
[1772644407469,7.26397127,92.16,92.061,7.15736701]
[1772644407770,7.26397127,92.16,92.098,7.15736701]
[1772644407961,173.58,92.205,92.098,7.15736701]
[1772644407962,7.26397127,92.18,92.098,7.15736701]
[1772644408367,7.60155037,92.175,92.098,7.15736701]
[1772644408568,7.60155037,92.159,92.098,7.15736701]
[1772644409166,7.60155037,92.159,92.075,7.15736701]
[1772644409572,7.60155037,92.159,92.081,7.15736701]
[1772644410071,7.60155037,92.176,92.081,7.15736701]
[1772644410272,7.60155037,92.159,92.081,7.15736701]
[1772644410464,9.763,92.155,92.084,9.771]
[1772644410669,7.60155037,92.154,92.084,9.771]
[1772644411066,7.60155037,92.154,92.095,9.77]
[1772644411369,7.60155037,92.154,92.081,7.15736701]
[1772644411767,7.60155037,92.136,92.081,7.15736701]
[1772644411972,7.60155037,92.136,92.075,9.772]
[1772644412175,7.60155037,92.136,92.063,7.15736701]
[1772644413269,7.60155037,92.136,92.075,9.772]
[1772644413475,7.60155037,92.136,92.076,7.15736701]
[1772644413671,7.60155037,92.159,92.076,7.15736701]
[1772644414576,7.26397127,92.16,92.083,9.771]
[1772644414577,7.60155037,92.147,92.083,9.771]
[1772644414776,7.60155037,92.147,92.076,7.15736701]
[1772644414971,7.60155037,92.147,92.104,9.769]
[1772644415183,7.60155037,92.158,92.094,7.15736701]
[1772644415678,9.763,92.157,92.103,9.769]
[1772644416273,9.764,92.148,92.094,7.15736701]
[1772644416469,193.096,92.205,92.094,7.15736701]
[1772644416671,7.26397127,92.19,92.125,7.15736701]
[1772644416876,7.60155037,92.194,92.125,7.15736701]
[1772644417075,7.60155037,92.189,92.101,7.15736701]
[1772644417279,7.60155037,92.169,92.105,9.769]
[1772644417578,17.36455037,92.158,92.105,9.769]
[1772644417875,17.36455037,92.158,92.101,7.15736701]
[1772644418179,9.764,92.152,92.101,7.15736701]
[1772644418378,7.26397127,92.17,92.08,7.26397127]
[1772644418379,7.26397127,92.15,92.087,9.77]
[1772644418579,7.60155037,92.149,92.087,9.77]
[1772644419583,7.60155037,92.146,92.077,9.771]
[1772644419781,7.60155037,92.146,92.062,7.15736701]
[1772644419973,9.767,92.118,92.062,7.15736701]
[1772644420178,7.60155037,92.117,92.044,7.15736701]
[1772644420576,9.767,92.124,92.059,7.15736701]
[1772644420772,7.60155037,92.129,92.059,7.15736701]
[1772644422282,9.767,92.116,92.06,9.773]
[1772644422580,7.60155037,92.129,92.06,9.773]
[1772644423374,7.60155037,92.144,92.068,7.15736701]
[1772644424080,7.60155037,92.143,92.068,7.15736701]
[1772644424383,7.60155037,92.143,92.085,9.771]
[1772644424384,9.765,92.142,92.085,9.771]
[1772644424980,9.765,92.134,92.076,9.772]
[1772644425585,9.765,92.134,92.076,16.92936701]
[1772644426088,7.60155037,92.142,92.084,9.771]
[1772644426781,9.765,92.141,92.093,9.77]
[1772644426979,7.60155037,92.142,92.093,9.77]
[1772644427982,7.60155037,92.142,92.085,25.73287298]
[1772644428186,7.26397127,92.15,92.086,7.15736701]
[1772644428879,7.63414113,92.149,92.086,7.15736701]
[1772644429082,7.63414113,92.167,92.086,7.15736701]
[1772644429987,9.763,92.159,92.104,9.769]
[1772644430180,7.63414113,92.167,92.086,7.15736701]
[1772644430379,7.63414113,92.157,92.085,15.96187298]
[1772644430693,7.63414113,92.148,92.086,7.58492727]
[1772644431386,17.39814113,92.148,92.102,9.769]
[1772644432389,17.39814113,92.148,92.093,17.35492727]
[1772644432992,7.63414113,92.148,92.085,25.73287298]
[1772644434393,9.766,92.134,92.085,25.73287298]
[1772644434593,9.766,92.134,92.085,15.96187298]
[1772644434890,7.63414113,92.139,92.085,15.96187298]
[1772644435290,9.766,92.132,92.085,15.96187298]
[1772644435691,7.63414113,92.139,92.086,7.58492727]
[1772644435895,7.63414113,92.159,92.086,7.58492727]
[1772644436286,14.8981124,92.14,92.085,15.96187298]
[1772644436596,7.63414113,92.139,92.085,15.96187298]
[1772644436894,9.766,92.126,92.085,15.96187298]
[1772644437093,7.63414113,92.139,92.085,15.96187298]
[1772644438988,7.63414113,92.139,92.049,7.58492727]
[1772644439194,7.26397127,92.11,92.05,7.58492727]
[1772644439393,2.98976476,92.109,92.05,7.58492727]
[1772644439596,2.98976476,92.109,92.049,16.38422466]
[1772644439597,9.768,92.108,92.052,17.35892727]
[1772644439797,9.768,92.108,92.053,7.58492727]
[1772644439997,2.98976476,92.109,92.053,7.58492727]
[1772644440198,9.769,92.1,92.053,7.58492727]
[1772644440797,7.26397127,92.11,92.053,7.58492727]
[1772644440999,9.63680192,92.13,92.055,7.58492727]
[1772644441501,9.766,92.128,92.072,9.772]
[1772644441699,9.766,92.128,92.073,7.58492727]
[1772644441900,9.65925326,92.15,92.073,7.58492727]
[1772644442101,2.39528199,92.149,92.079,7.58492727]
[1772644443398,9.764,92.148,92.09,7.58492727]
[1772644443599,7.91456602,92.154,92.09,7.58492727]
[1772644443801,2.41870172,92.167,92.09,7.58492727]
[1772644444000,2.41870172,92.167,92.102,7.58492727]
[1772644444200,2.44060381,92.159,92.102,7.58492727]
[1772644444596,9.764,92.147,92.102,7.58492727]
[1772644445295,2.42232642,92.178,92.115,7.58492727]
[1772644445500,7.93653795,92.187,92.115,7.58492727]
[1772644445699,2.44361178,92.213,92.121,7.58492727]
[1772644445898,9.758,92.204,92.153,7.58492727]
[1772644446096,9.758,92.204,92.153,23.84393038]
[1772644446292,12.20061178,92.213,92.154,7.58492727]
[1772644446499,2.44361178,92.213,92.154,7.58492727]
[1772644446898,9.76,92.185,92.153,16.25900311]
[1772644447101,7.93548775,92.212,92.141,7.58492727]
[1772644447299,3.16515834,92.222,92.149,7.58492727]
[1772644447602,3.16515834,92.209,92.149,16.21986211]
[1772644448300,10.45100342,92.19,92.149,16.21986211]
[1772644448500,3.18703215,92.208,92.15,7.58492727]
[1772644448896,3.18703215,92.208,92.149,16.21986211]
[1772644450409,9.759,92.195,92.149,16.21986211]
[1772644450605,3.18703215,92.208,92.149,16.21986211]
[1772644451010,9.759,92.196,92.149,16.21986211]
[1772644452102,9.759,92.191,92.149,16.21986211]
[1772644452707,9.758,92.201,92.149,16.21986211]
[1772644453110,9.758,92.201,92.149,23.80478938]
[1772644453310,7.93993757,92.206,92.152,7.58492727]
[1772644453611,7.26397127,92.21,92.152,7.58492727]
[1772644454405,9.758,92.201,92.152,7.58492727]
[1772644455311,17.02097127,92.21,92.155,9.763]
[1772644455609,7.26397127,92.21,92.152,7.58492727]
[1772644456511,9.758,92.202,92.152,7.58492727]
[1772644457402,9.758,92.202,92.154,7.58492727]
[1772644457811,7.26397127,92.21,92.154,7.58492727]
[1772644458111,10.95455396,92.23,92.157,7.58492727]
[1772644458308,9.757,92.217,92.157,7.58492727]
[1772644458915,9.756,92.225,92.172,7.77979046]
[1772644459209,3.81495488,92.229,92.172,7.77979046]
[1772644459410,3.81495488,92.211,92.17,16.25246634]
[1772644459603,3.83313627,92.209,92.17,0.00046634]
[1772644461014,9.759,92.199,92.17,0.00046634]
[1772644462013,9.758,92.208,92.17,0.00046634]
[1772644462409,3.76324595,92.226,92.17,0.00046634]
[1772644463010,3.96031216,92.209,92.17,0.00046634]
[1772644464112,3.96031216,92.209,92.149,16.21986211]
[1772644464309,3.96031216,92.209,92.15,7.77979046]
[1772644464814,9.758,92.209,92.16,7.77979046]
[1772644465016,7.26397127,92.22,92.16,7.77979046]
[1772644465212,11.14017014,92.22,92.16,7.77979046]
[1772644466114,9.758,92.203,92.161,7.91928487]
[1772644466515,3.87619887,92.22,92.161,7.91928487]
[1772644466720,3.49611305,92.239,92.161,7.91928487]
[1772644468009,9.757,92.213,92.17,9.762]
[1772644468212,9.757,92.213,92.17,26.01824848]
[1772644468706,9.757,92.213,92.171,7.91928487]
[1772644469516,3.49611305,92.239,92.173,7.91928487]
[1772644469713,3.33359154,92.229,92.17,16.25624848]
[1772644469911,3.33359154,92.229,92.157,7.91928487]
[1772644470414,3.33359154,92.229,92.16,7.91928487]
[1772644471317,3.33359154,92.229,92.163,7.91928487]
[1772644471720,3.4068606,92.245,92.163,7.91928487]
[1772644472017,3.4068606,92.245,92.166,7.91928487]
[1772644472511,3.4068606,92.245,92.178,7.91928487]
[1772644473419,9.757,92.214,92.178,7.91928487]
[1772644474014,3.4068606,92.245,92.178,7.91928487]
[1772644474216,3.67689537,92.229,92.141,7.91928487]
[1772644474412,151.691,92.27,92.141,7.91928487]
[1772644474413,3.67689537,92.209,92.141,7.91928487]
[1772644474616,9.76,92.189,92.142,7.91928487]
[1772644474816,3.67689537,92.209,92.142,7.91928487]
[1772644475423,3.61352384,92.193,92.121,7.91928487]
[1772644476318,9.761,92.175,92.131,7.91928487]
[1772644476716,3.61352384,92.193,92.131,7.91928487]
[1772644477719,7.9459366,92.207,92.101,7.91928487]
[1772644477720,3.98595589,92.179,92.101,7.91928487]
[1772644478119,7.25825412,92.18,92.101,7.91928487]
[1772644478120,9.764,92.152,92.101,7.91928487]
[1772644478420,19.516,92.208,92.101,7.91928487]
[1772644478421,3.98595589,92.159,92.101,7.91928487]
[1772644479214,3.98595589,92.159,92.082,7.91928487]
[1772644479615,3.23490348,92.139,92.041,7.91928487]
[1772644480430,3.23499545,92.119,92.041,7.91928487]
[1772644481025,2.77258749,92.099,92.022,7.91928487]
[1772644481621,9.771,92.08,92.022,7.91928487]
[1772644481829,2.77258749,92.099,92.022,7.91928487]
[1772644482227,9.769,92.102,92.035,7.91928487]
[1772644482430,7.25825412,92.12,92.035,7.91928487]
[1772644482623,2.78613617,92.135,92.035,7.91928487]
[1772644483629,9.767,92.119,92.059,7.91928487]
[1772644484034,9.766,92.131,92.061,7.91928487]
[1772644485025,9.766,92.131,92.07,9.772]
[1772644485225,9.766,92.131,92.071,7.91928487]
[1772644486425,9.766,92.131,92.074,17.69128487]
[1772644487427,9.767,92.122,92.074,7.91928487]
[1772644487725,2.66700787,92.121,92.058,7.91928487]
[1772644487925,151.854,92.171,92.0,19.56]
[1772644487926,7.25825412,92.1,92.021,7.91928487]
[1772644488630,9.771,92.086,92.026,7.63031175]
[1772644488836,2.87976616,92.099,92.026,7.63031175]
[1772644489236,12.65076616,92.086,92.026,7.63031175]
[1772644489430,2.87976616,92.086,92.026,7.63031175]
[1772644490134,9.772,92.077,92.026,7.63031175]
[1772644491131,9.773,92.068,92.026,7.63031175]
[1772644491328,2.84083264,92.079,91.963,7.63031175]
[1772644491530,2.84083264,92.079,91.971,7.63031175]
[1772644491734,2.84083264,92.079,92.009,7.63031175]
[1772644491926,2.85276845,92.097,92.009,7.63031175]
[1772644493028,9.772,92.074,92.017,9.778]
[1772644493234,9.772,92.074,92.018,7.63031175]
[1772644493528,7.25825412,92.1,91.981,7.63031175]
[1772644493529,2.68578173,92.079,91.981,7.63031175]
[1772644493729,7.91552515,92.099,91.97,7.25825412]
[1772644493730,2.69721403,92.059,91.996,17.41031175]
[1772644493938,2.69721403,92.059,91.997,7.63031175]
[1772644495630,2.69721403,92.059,91.998,7.63031175]
[1772644496134,9.775,92.049,91.998,7.63031175]
[1772644496339,2.69721403,92.059,91.998,7.63031175]
[1772644496634,9.774,92.05,91.998,17.41031175]
[1772644496841,9.774,92.05,91.946,19.571]
[1772644496842,2.69664925,92.049,91.98,7.63031175]
[1772644498543,9.775,92.041,91.981,7.63031175]
[1772644498842,2.69664925,92.049,91.981,7.63031175]
[1772644499243,9.776,92.032,91.981,7.63031175]
[1772644499933,9.775,92.043,91.983,7.63031175]
[1772644500134,12.50147151,92.043,91.983,7.63031175]
[1772644500339,2.72647151,92.062,91.983,7.63031175]
[1772644500842,2.72647151,92.062,91.971,7.63031175]
[1772644501240,2.79048833,92.046,91.971,7.63031175]
[1772644501443,2.79048833,92.029,91.954,7.63031175]
[1772644502643,2.81170545,92.048,91.954,7.63031175]
[1772644502847,9.775,92.047,91.995,9.78]
[1772644503048,2.82228574,92.069,91.991,7.63031175]
[1772644503441,9.777,92.028,91.975,7.63031175]
[1772644504050,2.82228574,92.037,91.976,9.782]
[1772644504244,2.82228574,92.037,91.975,7.63031175]
[1772644504846,9.777,92.027,91.975,7.63031175]
[1772644505850,9.778,92.018,91.975,7.63031175]
[1772644506348,2.82228574,92.037,91.977,7.63031175]
[1772644507648,9.777,92.028,91.979,9.782]
[1772644507849,2.77415523,92.059,91.98,7.63031175]
[1772644508251,9.774,92.054,92.0,7.63031175]
[1772644509352,2.80309383,92.077,92.006,7.63031175]
[1772644509553,2.81312005,92.096,92.006,7.63031175]
[1772644510050,9.771,92.082,92.036,7.63031175]
[1772644510352,2.81312005,92.096,92.036,7.63031175]
[1772644511555,7.25825412,92.11,92.039,7.63031175]
[1772644511746,173.78,92.167,91.984,152.162]
[1772644511747,2.82735261,92.132,92.041,7.63031175]
[1772644511948,2.82735261,92.132,92.082,9.771]
[1772644512148,2.82735261,92.132,92.006,152.126]
[1772644512149,2.82735261,92.129,92.031,7.63031175]
[1772644512354,2.82735261,92.109,92.031,7.63031175]
[1772644512655,9.771,92.082,92.031,7.63031175]
[1772644512952,2.8318151,92.081,91.983,7.63031175]
[1772644513147,2.8318151,92.081,92.001,7.63031175]
[1772644513348,2.8318151,92.1,92.034,7.63031175]
[1772644513546,2.84133529,92.089,92.017,7.63031175]
[1772644513948,9.772,92.071,92.017,17.40831175]
[1772644514351,2.84133529,92.089,92.017,7.63031175]
[1772644514549,9.772,92.073,92.017,7.63031175]
[1772644515552,3.01644426,92.069,92.005,9.779]
[1772644516256,3.01644426,92.069,92.01,7.63031175]
[1772644516956,9.773,92.067,92.011,9.778]
[1772644517358,9.773,92.067,92.012,7.63031175]
[1772644517558,9.774,92.058,92.012,7.63031175]
[1772644517754,7.25825412,92.09,91.992,7.63031175]
[1772644517755,2.97118092,92.057,91.992,7.63031175]
[1772644518455,2.97118092,92.057,91.961,8.03750359]
[1772644518855,9.775,92.04,91.982,8.03750359]
[1772644519251,9.778,92.021,91.961,9.784]
[1772644519557,2.18792921,92.039,91.962,8.03750359]
[1772644519760,2.19556344,92.019,91.962,8.03750359]
[1772644519950,2.19556344,92.019,91.92,7.25825412]
[1772644519951,9.78,91.999,91.941,8.03750359]
[1772644520862,9.781,91.989,91.941,8.03750359]
[1772644521061,10.05333497,92.053,91.942,8.03750359]
[1772644521254,2.07386989,92.019,91.942,8.03750359]